Cogmind - Beta 15 *** ADVENTURER MODE // 2025.07.30 @ 13:40:02 Player: LegoMDS Result: Destroyed by Piercing Trap Performance ------------- Evolutions (0) 0 Regions Visited (2) 400 Robots Destroyed (20) 100 Value Destroyed (521) 521 Prototype IDs (4) 80 Alien Tech Used (0) 0 Bonus (0) 0 TOTAL SCORE: 1101 Bonus ------- None Cogmind --------- Core Integrity 0/250 Matter 249/300 Energy 248/250 System Corruption 0% Temperature Cool (0) Movement Rolling (105) Ox1 Location -10/Subcaves Parts ------- > --- POWER (1) -------- Ion Engine > --- PROPULSION (2) --- Wheel Compact Wheel > --- UTILITY (2) ------ Large Storage Unit Signal Interpreter > --- WEAPON (2) ------- Medium Laser Grenade Launcher > --- INVENTORY (15) --- Subdweller Power Source Wheel Subdweller Monowheel Disposable Heat Sink Medium Storage Unit Subdweller Optics Subdweller Optics Propulsion Shielding Medium Laser Subdweller Beam Cannon Peak State ------------ > --- POWER ------------ Ion Engine > --- PROPULSION ------- Wheel Compact Wheel > --- UTILITY ---------- Large Storage Unit Signal Interpreter > --- WEAPON ----------- Medium Laser Particle Gun > --- INVENTORY -------- Ion Engine Subdweller Power Source Wheel Disposable Heat Sink Medium Storage Unit Propulsion Shielding Medium Laser Grenade Launcher [Rating: 9] Favorites ----------- Power Ion Engine Engine Ion Engine Propulsion Compact Wheel Wheel Compact Wheel Utility Signal Interpreter Storage Large Storage Unit Processor Signal Interpreter Weapon Assault Rifle Energy Gun Particle Gun Ballistic Gun Assault Rifle Launcher Grenade Launcher Build | -11 -10 -10 ------- Run | Yrd Mat Sub Slots Evolved . | . . . Power . | . . . Propulsion . | . . . Utility . | . . . Weapon . | . . . Parts Attached 16 | 6 6 4 Power 2 | 1 . 1 Engine 2 | 1 . 1 Core . | . . . Reactor . | . . . Propulsion 5 | 2 2 1 Treads . | . . . Leg . | . . . Wheel 5 | 2 2 1 Hover . | . . . Flight . | . . . Utility 4 | 1 3 . Device . | . . . Storage 3 | 1 2 . Processor 1 | . 1 . Hackware . | . . . Protection . | . . . Artifact . | . . . Weapon 5 | 2 1 2 Energy Gun 3 | 1 1 1 Energy Cannon . | . . . Ballistic Gun 1 | 1 . . Ballistic Cannon . | . . . Launcher 1 | . . 1 Special Weapon . | . . . Impact Weapon . | . . . Slashing Weapon . | . . . Piercing Weapon . | . . . Special Melee Weapon . | . . . Unidentified Prototypes . | . . . Parts Lost 5 | . . 5 Power 1 | . . 1 Propulsion 2 | . . 2 Utility . | . . . Weapon 2 | . . 2 Highest Loss Streak 3 | . . 3 To Critical Strikes . | . . . Average Backups 7 | 2 6 9 Power 1 | . 1 1 Propulsion 2 | . 2 2 Utility 1 | . . 4 Weapon 2 | 1 2 2 Tool/Special . | . . . Unused Backups 8 | . . 8 Power 1 | . . 1 Propulsion 2 | . . 2 Utility 4 | . . 4 Weapon 1 | . . 1 Tool/Special . | . . . Average Slot Usage (%) 96 | . 95 97 Engine 13 | . 14 13 Wheel 27 | . 28 27 Storage 14 | . 14 14 Processor 11 | . 10 14 Energy Gun 15 | . 13 17 Ballistic Gun 8 | . 14 2 Launcher 2 | . . 6 Peak Build Rating 9 | 6 8 9 Average Rating 7 | 4 7 7 On Entrance 4 | . 6 8 Naked Turns . | . . . Heaviest Build 30 | 14 30 30 Greatest Support 32 | 32 32 26 Greatest Overweight (x) 1 | . 1 1 Average Overweight (x) . | . . . Largest Inventory Capacity 15 | 8 15 15 Average Capacity 11 | 6 9 15 Most Carried 10 | 5 9 10 Average Carried 7 | 2 6 9 Final Capacity 15 | 8 15 15 Final Carried 10 | 2 9 10 Class Distribution -------------------- 100% | Mutant Dominant Class ---------------- Mutant | -10/Materials Mutant | -10/Subcaves Resources | -11 -10 -10 ----------- Run | Yrd Mat Sub Matter Collected 554 | 215 217 122 Remotely . | . . . Salvage Created 622 | . 366 256 Parts 42 | . 29 13 Haulers Intercepted 1 | . 1 . Recyclers Shooed . | . . . Parts Field Recycled . | . . . Retrieved Matter . | . . . Parts Self-Destructed 10 | . . 10 Prevented . | . . . Kills | -11 -10 -10 ------- Run | Yrd Mat Sub Combat Hostiles Destroyed 17 | . 9 8 Guns 14 | . 9 5 AOE 3 | . . 3 Classes Destroyed 5 | . 4 1 Hauler 1 | . 1 . Watcher 2 | . 2 . Swarmer 6 | . 3 3 Grunt 6 | . 6 . Subdweller 5 | . . 5 Best Kill Streak 4 | . 4 3 Combat Bots Only 3 | . 3 3 Max Kills in Single Turn 2 | . 2 2 Gunslinging 1 | . 1 . Exploded 2 | . . 2 Melee . | . . . Uniques/NPCs Destroyed . | . . . Combat | -11 -10 -10 -------- Run | Yrd Mat Sub Hostile Shots Fired 88 | . 45 43 Missed 27 | . 14 13 Hits 61 | . 31 30 Projectile 61 | . 31 30 Critical Strikes 2 | . . 2 Damage Taken 774 | . 265 509 Core 267 | . 59 208 Absorbed by Shields . | . . . Ignored by Resistances 220 | . 83 137 Core Remaining (%) 100 | 100 . . Volleys Fired 79 | . 34 45 Largest 2 | . 2 2 Hottest 115 | . 85 115 Shots Fired 123 | . 62 61 Gun 116 | . 62 54 Cannon . | . . . Launcher 7 | . . 7 Special . | . . . Kinetic 40 | . 34 6 Thermal 76 | . 28 48 Explosive 7 | . . 7 Electromagnetic . | . . . Robot Hit Streak 26 | . 16 26 Robot Miss Streak 5 | . 5 1 Penetration Max . | . . . Secondary Targets 4 | . 3 1 Max Gunslinging Chain 1 | . 1 1 Shots Hit Robots 91 | . 39 52 Core Hits 33 | . 18 15 Critical Kills . | . . . Critical Parts Destroyed . | . . . Critical Strikes 10 | . 2 8 Burn 10 | . 2 8 Melee Attacks . | . . . Impact . | . . . Slashing . | . . . Piercing . | . . . Sneak Attacks . | . . . Combat Hostiles . | . . . Follow-up Attacks . | . . . Damage Inflicted 1317 | . 529 788 Guns 1168 | . 529 639 Cannons . | . . . Explosions 149 | . . 149 Melee . | . . . Ramming . | . . . Kinetic 331 | . 283 48 Thermal 837 | . 246 591 Explosive 149 | . . 149 Electromagnetic . | . . . Impact . | . . . Slashing . | . . . Piercing . | . . . Highest Corruption . | . . . Average Corruption . | . . . Corruption Purged . | . . . Corruption Blocked . | . . . Overload Shots . | . . . Overflow Damage . | . . . Projectiles . | . . . Explosions . | . . . Melee . | . . . Knockbacks . | . . . Impact . | . . . Kinetic . | . . . Secondary . | . . . Self-Inflicted Damage 11 | . . 11 Shots 1 | . . 1 Rammed . | . . . Targets Rammed . | . . . Kicked . | . . . Crushed . | . . . Highest Temperature 234 | . 186 234 Average Temperature 74 | . 67 130 Received Heat Transfer 480 | . 132 348 Effects 1 | . . 1 Energy Bleed 1 | . . 1 Siege Activations . | . . . Martial Activations . | . . . Shielding Activations . | . . . Robots Disrupted . | . . . Combat Hostiles . | . . . Robots Corrupted . | . . . Combat Hostiles . | . . . Parts Fried . | . . . Impact Corruptions . | . . . Robots Melted . | . . . Combat Hostiles . | . . . Parts Melted 2 | . . 2 Heat Transferred 2960 | . 777 2183 Parts Sabotaged . | . . . Parts Stolen . | . . . Parts Stripped . | . . . Power Chain Reactions . | . . . Alert | -11 -10 -10 ------- Run | Yrd Mat Sub Maximum Alert Level . | . . . Low Security (%) 100 | 100 100 . Level 1 . | . . . Level 2 . | . . . Level 3 . | . . . Level 4 . | . . . Level 5 . | . . . High Security . | . . . Max Security . | . . . Peak Influence 104 | . 104 . Initial . | . . . Average 34 | . 36 . Influence Increases 355 | . 285 70 Destroy 0b10 Robot/C 240 | . 180 60 Destroy 0b10 Robot/NC 15 | . 15 . Destroy Leader 36 | . 26 10 Successful Hack 10 | . 10 . Disable Machine 9 | . 9 . Partial Spotted 15 | . 15 . Lose Combat Pursuer 30 | . 30 . Influence Decreases 295 | . 264 31 Entered New Map 12 | . . 12 Time Decay 283 | . 264 19 Squads Dispatched . | . . . Investigation . | . . . Extermination . | . . . Reinforcement . | . . . Assault . | . . . Garrison . | . . . Intercept . | . . . Searches Triggered . | . . . Construction Impeded . | . . . Haulers Reinforced . | . . . Active Scanning Responses . | . . . Cargo Convoy Interrupts . | . . . Stealth | -11 -10 -10 --------- Run | Yrd Mat Sub Distress Signals 1 | . 1 . Communications Jammed . | . . . Distress Signals . | . . . Times Spotted 25 | . 16 9 Peak Tracking Total 5 | . 5 3 Tactical Retreats 2 | . 1 1 Traps | -11 -10 -10 ------- Run | Yrd Mat Sub Traps Triggered 2 | . 1 1 Indirectly . | . . . Trap Hack Attempts . | . . . Triggered . | . . . Disarmed . | . . . Reprogrammed . | . . . Reused . | . . . Traps Extracted . | . . . Installed . | . . . Triggered . | . . . Machines | -11 -10 -10 ---------- Run | Yrd Mat Sub Machines Disabled 1 | . 1 . Max in Single Turn 1 | . 1 . Machines Repaired . | . . . Machines Dismantled . | . . . Machines Sabotaged . | . . . Overloaded Fab Kills . | . . . Hacking | -11 -10 -10 --------- Run | Yrd Mat Sub Machines Accessed 5 | . 5 . Terminals 5 | . 5 . Fabricators . | . . . Repair Stations . | . . . Recycling Units . | . . . Scanalyzers . | . . . Garrison Access . | . . . Total Hacks 12 | . 12 . Successful 7 | . 7 . Failed 5 | . 5 . Catastrophic . | . . . Database Lockouts . | . . . Manual . | . . . Terminals 12 | . 12 . Fabricators . | . . . Repair Stations . | . . . Recycling Units . | . . . Scanalyzers . | . . . Garrison Access . | . . . Terminal Hacks 7 | . 7 . Prototype ID Bank 2 | . 2 . Branch Access Points 1 | . 1 . Hauler Manifests 2 | . 2 . Zone Layout 2 | . 2 . Fabricator Hacks . | . . . Repair Station Hacks . | . . . Recycling Unit Hacks . | . . . Scanalyzer . | . . . Garrison Access Hacks . | . . . Unauthorized Hacks . | . . . Terminals . | . . . Fabricators . | . . . Repair Stations . | . . . Recycling Units . | . . . Scanalyzers . | . . . Garrison Access . | . . . Data Cores Recovered . | . . . Used . | . . . Hacking Detections 2 | . 2 . Full Trace Events 1 | . 1 . Feedback Events . | . . . Feedback Blocked . | . . . Robot Schematics Acquired . | . . . Robots Built . | . . . Authchips . | . . . Time . | . . . Total Robot Build Rating . | . . . Part Schematics Acquired . | . . . Parts Built . | . . . Authchips . | . . . Time . | . . . Total Part Build Rating . | . . . Parts Repaired . | . . . Time . | . . . Parts Recycled . | . . . Recycled Matter . | . . . Retrieved Matter . | . . . Retrieved Components . | . . . Parts Scanalyzed . | . . . Part Schematics Acquired . | . . . Parts Damaged . | . . . Bothacking | -11 -10 -10 ------------ Run | Yrd Mat Sub Used RIF Installer . | . . . Robots Hacked . | . . . Non-combat . | . . . Combat . | . . . Robot Hacks Applied . | . . . Relay Couplers Released . | . . . Fabnet Peak Effective % . | . . . Robots Rewired . | . . . Allies Hacked . | . . . Hacks Repelled . | . . . Allies | -11 -10 -10 -------- Run | Yrd Mat Sub Total Allies . | . . . Largest Group . | . . . Highest-Rated Group . | . . . Highest-Rated Ally . | . . . Total Orders . | . . . Ally Attacks . | . . . Total Damage . | . . . Kills . | . . . Allies Corrupted . | . . . Allies Melted 1 | . . 1 Intel | -11 -10 -10 ------- Run | Yrd Mat Sub Active Infowar (turns) . | . . . Robot Analysis Total . | . . . Derelict Logs Recovered . | . . . Drone Launches . | . . . Drone Recoveries . | . . . Exploration | -11 -10 -10 ------------- Run | Yrd Mat Sub Turns Passed 1192 | 47 656 489 Spaces Moved 953 | 37 569 347 Core 8 | 8 . . Treads . | . . . Legs . | . . . Wheels 945 | 29 569 347 Hover . | . . . Flight . | . . . Fastest Speed 50 | 50 90 90 Average Speed 98 | 89 94 104 Slowest Speed 105 | 100 105 105 Overloaded Moves . | . . . Propulsion Burnouts . | . . . Robots Hopped . | . . . Potential Cave-ins . | . . . Cave-ins Triggered . | . . . Exploration Rate (%) 39 | 3 90 24 Regions Visited 2 Branch Regions 1 Pre-discovered Areas 1 | . . 1 Known Exits Taken 1 | . 1 . Unknown Exits Taken 1 | 1 . . Scrap Searched . | . . . Spaces Dug 16 | . . 16 Terrain Destroyed 46 | . . 46 Melee . | . . . Projectile . | . . . AOE 46 | . . 46 Terrain Rammed . | . . . Walls Destroyed . | . . . Machines Disabled . | . . . Actions | -11 -10 -10 --------- Run | Yrd Mat Sub Total 1081 | 50 622 409 Wait 1 | . . 1 Move 951 | 36 568 347 Hop . | . . . Pick Up 25 | 8 11 6 Fast Attach . | . . . Attach 13 | 6 2 5 Detach . | . . . Swap 10 | . 5 5 Drop 2 | . 2 . Fire 79 | . 34 45 Melee . | . . . Ram . | . . . Kick . | . . . Crush . | . . . Escape Stasis . | . . . Rewire . | . . . Trap . | . . . Miscellaneous . | . . . Route ------- -11/Scrapyard -10/Materials (discovered 5 exits: *Mat x3 / *Min / *Sub) -10/Subcaves (discovered 1 exit: *Mat) History --------- Turn | Location | Event 29 | -11/Scrapyard | Discovered new exit (range 12) 48 | -11/Scrapyard | Entered Materials 174 | -10/Materials | Discovered new exit (range 11) 223 | -10/Materials | Identified exit to Materials 305 | -10/Materials | Discovered exit to Materials (range 3) 307 | -10/Materials | Build established: Mutant 356 | -10/Materials | Identified exit to Mines 451 | -10/Materials | Discovered exit to Materials (range 15) 698 | -10/Materials | Discovered new exit (range 5) 703 | -10/Materials | Identified exit to Subcaves 704 | -10/Materials | Entered Subcaves 705 | -10/Subcaves | Approached by a straggling Scientist 826 | -10/Subcaves | Lost 3 parts (2n1w) 834 | -10/Subcaves | Learned location of Zion (-7) 834 | -10/Subcaves | Met a Zionite searching for "candidates" 865 | -10/Subcaves | Core integrity fell below 50% 892 | -10/Subcaves | Shifting Twisted Machinery released Sub. Optics 952 | -10/Subcaves | Core integrity fell below 20% 1005 | -10/Subcaves | Shifting Twisted Machinery released Sub. Laser 1146 | -10/Subcaves | Discovered new exit (range 9) 1152 | -10/Subcaves | Identified exit to Materials 1193 | -10/Subcaves | Destroyed by Piercing Trap Last Messages --------------- Sub. Monowheel melted. 0H-R28(R) destroyed. Acquired 30 matter. Subatomizers dissect the Disposable Heat Sink. Acquired 10 matter. Acquired 2 matter. Acquired 6 matter. Acquired 1 matter. Subatomizers dissect the Disposable Heat Sink. Sub. Laser falls loose from the Twisted Machinery. The unstable cave ceiling collapses. 2L-OYP(u) builds Twisted Machinery. EXIT=FOUND EXIT=IDENTIFIED: MATERIALS S-10 Pest suffers critical hit (Burn). S-10 Pest destroyed. Triggered Piercing Trap. Spikes shoot up from the floor. Critical hit (Impale). Map ----- +----------------------------------------------------+ | ?????????????????????????????????????????????? | | ?????????????????????????????????????????????? | | ?????????????????????????????????????????????? | | ?????????????????????????????????????????????? | | ?????????????????????????????????????????????? | | ?????????????????????????????????????????????? | | ?????????????????????????????????????????????? | | ????????????????????????????????? ???????????? | | ???????????????????????????????? ???????????? | | ???????????????????????????? ?? ??????##???? | | ??????????????????????????## ? ?????" ???? | | ?????????????????????? ### ? ????? ???? | | ????????????????????? ?? ##### ????? | | ???????????????????? ?? ????? | | ???????????????????? *% ??? ?????? | | ???????????????????? = ??? ??????? | | ????????????????????# #??# #??????? | | ?????????????????????# [ #### #??????? | | ???????????????????### = ## #???????? | | ???????????????????# ##?####?? | | ??????????????#????# # #?# ### | | ??????????????# ??# ## #### | | ??????????????# ?# $?????# # ## | | ??????????????# # ####?## | | ??????????????# # ### # | | ???????????????# @ # # ## | | ???????????????## ## # ## | | ????????????????#### ### ### | | ???????????????????## #?# ## | | ????????????????????###?# ## | | ????????????????????????# ### | | ????????????????????????######## ### ## | | ???????????????????????????????###### ##### | | ????????????????????????????????????######???? | | ?????????????????????????????????????????????? | | ?????????????????????????????????????????????? | | ?????????????????????????????????????????????? | | ?????????????????????????????????????????????? | | ?????????????????????????????????????????????? | | ?????????????????????????????????????????????? | | ?????????????????????????????????????????????? | | ?????????????????????????????????????????????? | | ?????????????????????????????????????????????? | | ?????????????????????????????????????????????? | | ?????????????????????????????????????????????? | | ?????????????????????????????????????????????? | | ?????????????????????????????????????????????? | | ?????????????????????????????????????????????? | | | | | +----------------------------------------------------+ Best States ------------- Heat Dissipation 25 Energy Generation 10 Energy Capacity 250 Matter Stores 300 Matter Capacity 300 Sight Range 16 Terrain Scan Density 10 Resistance: KI 20 Resistance: TH 20 Resistance: EX 20 Resistance: EM 20 Resistance: I 20 Resistance: S 20 Resistance: P 20 Evasion (%) 50 Offensive Hacking 10 Item Schematics ----------------- None Robot Schematics ------------------ None Fabricated ------------ Nothing Repaired ---------- Nothing Alien Tech Used ----------------- None Achievements -------------- None Challenges ------------ None Game ------ Seed OpticalRemoteMiniperforator Manual? 0 Play Time 00:11:20 Cumulative 90.7 hours Start 2025.07.30 @ 13:30:26 End 2025.07.30 @ 13:40:02 Sessions 1 Manual Loads 0 Difficulty Adventurer Special Mode None Game No. 124 Rogue 13 Adventurer 111 Explorer 0 Win Type - Total 0 Types 0/0/0/0/0/0/0/0/0/0 Lore% 67 Gallery% 60 Achievement% 46 Wizard Run 0 Options --------- Layout 1 ASCII 0 Keyboard 0 Movement Mouse Keybinds 0 Fullscreen 1 Font 32/SmallcapsGlow Map View 50x35 Zoom Use 0% Tactical HUD 0 Map Filters NONE Filters NONE Steam 1 RUN: 43d13238-c0b4-48cd-8fb7-47797f5be56c